bitfinex-derivatives/quotes_SOLF0:USTF0_20260304
["timestamp","ask_amount","ask_price","bid_price","bid_amount"]
[1772654898405,32.83192405,93.079,93.011,22.54150517]
[1772654899205,32.83192405,93.079,93.04,9.668]
[1772654899705,32.83192405,93.079,93.011,22.54150517]
[1772654901304,32.83192405,93.079,93.039,9.668]
[1772654901500,32.74568043,93.099,93.028,22.23671334]
[1772654901705,32.74568043,93.099,93.041,22.23671334]
[1772654903504,32.74568043,93.099,93.051,9.667]
[1772654904206,32.74568043,93.099,93.06,9.666]
[1772654904908,32.74568043,93.099,93.006,22.17816438]
[1772654905105,32.74568043,93.089,93.006,22.17816438]
[1772654905608,32.74568043,93.069,92.995,1.87033927]
[1772654905809,32.74568043,93.069,92.986,22.15941165]
[1772654906009,32.74568043,93.054,93.001,9.672]
[1772654906306,32.74568043,93.054,92.986,22.15941165]
[1772654907408,8.27795538,93.1,92.96,17.97724796]
[1772654907409,32.6760322,93.069,92.967,24.76150859]
[1772654907616,32.6760322,93.069,92.976,23.97120884]
[1772654907809,32.6760322,93.069,93.005,9.672]
[1772654908210,32.6760322,93.069,92.976,23.97120884]
[1772654908411,32.6760322,93.056,93.004,9.672]
[1772654908904,9.667,93.053,93.0,9.672]
[1772654909103,32.6760322,93.056,93.0,9.672]
[1772654909508,32.6760322,93.039,92.96,9.69929258]
[1772654909711,150.329,93.088,92.96,9.69929258]
[1772654909712,32.6760322,93.019,92.96,9.69929258]
[1772654910613,32.6760322,93.019,92.961,9.677]
[1772654911114,32.6760322,93.019,92.96,9.69929258]
[1772654911711,32.6760322,93.019,92.961,24.66636343]
[1772654912115,32.6760322,93.019,92.96,9.69929258]
[1772654913212,32.6760322,93.019,92.961,24.66448687]
[1772654913416,32.6760322,93.04,92.961,24.66448687]
[1772654913614,32.6760322,93.037,92.987,9.674]
[1772654913915,32.6760322,93.037,92.961,24.66448687]
[1772654915118,32.6760322,93.032,92.977,9.675]
[1772654915510,32.6760322,93.032,92.961,24.66448687]
[1772654915710,32.6760322,93.032,92.976,9.675]
[1772654917119,32.6760322,93.025,92.967,9.676]
[1772654917418,32.6760322,93.025,92.96,9.69929258]
[1772654918419,9.671,93.012,92.962,9.676]
[1772654919029,32.6760322,93.02,92.962,9.676]
[1772654919212,32.6760322,93.02,92.96,9.69929258]
[1772654919416,32.6760322,93.02,92.961,22.99757762]
[1772654920223,32.6760322,93.02,92.978,9.675]
[1772654920726,32.6760322,93.02,92.961,22.99757762]
[1772654921021,32.6760322,93.016,92.96,9.69929258]
[1772654922517,32.6760322,93.01,92.961,9.677]
[1772654923820,9.672,93.009,92.961,9.677]
[1772654924021,32.6760322,93.01,92.968,9.676]
[1772654924222,32.6760322,93.029,92.961,23.32566751]
[1772654925427,32.6760322,93.027,92.977,9.675]
[1772654925830,150.32,93.093,92.924,23.38329098]
[1772654925831,32.6760322,93.009,92.924,23.38329098]
[1772654926028,32.6760322,92.988,92.924,23.38329098]
[1772654926419,9.675,92.978,92.925,9.68]
[1772654926619,32.6760322,92.977,92.925,9.68]
[1772654927023,32.6760322,92.977,92.906,31.96408145]
[1772654927929,32.6760322,92.977,92.822,150.758]
[1772654927930,32.6760322,92.949,92.871,31.96408145]
[1772654928131,32.6760322,92.949,92.851,31.96408145]
[1772654928330,32.6760322,92.929,92.851,31.96408145]
[1772654928729,32.6760322,92.929,92.855,1.87333459]
[1772654929126,32.77640224,92.909,92.825,33.28167389]
[1772654929524,32.77640224,92.909,92.84,8.27795538]
[1772654929727,32.77640224,92.949,92.841,32.71091498]
[1772654929928,32.77640224,92.929,92.841,32.71091498]
[1772654930229,32.77640224,92.929,92.851,32.71091498]
[1772654930436,32.77640224,92.929,92.834,32.71091498]
[1772654930935,32.77640224,92.929,92.852,32.71482887]
[1772654931630,32.77640224,92.927,92.852,32.71482887]
[1772654932128,32.77640224,92.905,92.834,35.38735193]
[1772654932733,32.77640224,92.905,92.853,9.688]
[1772654932930,32.77640224,92.919,92.853,35.38735193]
[1772654933136,32.77640224,92.949,92.853,35.38735193]
[1772654933331,32.77640224,92.949,92.886,9.684]
[1772654933738,32.77640224,92.926,92.868,9.686]
[1772654933937,32.77640224,92.949,92.861,35.38735193]
[1772654934628,32.77640224,92.934,92.861,35.38735193]
[1772654935428,32.77640224,92.921,92.861,35.38735193]
[1772654935733,32.77640224,92.921,92.841,35.38735193]
[1772654936438,32.77640224,92.921,92.863,9.687]
[1772654937238,32.77640224,92.919,92.863,9.687]
[1772654938336,32.77640224,92.917,92.851,9.688]
[1772654938540,32.77640224,92.917,92.841,35.38735193]
[1772654939539,32.77640224,92.917,92.86,9.687]
[1772654939940,32.77640224,92.917,92.841,35.38735193]
[1772654940244,32.77640224,92.917,92.869,9.686]
[1772654940536,32.77640224,92.917,92.858,35.38735193]
[1772654940737,32.77640224,92.939,92.887,9.684]
[1772654940937,32.77640224,92.939,92.876,35.38735193]
[1772654941443,32.77640224,92.939,92.896,9.683]
[1772654942832,32.77640224,92.938,92.861,35.38735193]
[1772654943133,9.682,92.913,92.852,9.688]
[1772654943338,32.77640224,92.912,92.841,35.38735193]
[1772654943941,32.77640224,92.912,92.861,9.687]
[1772654944142,32.77640224,92.909,92.833,1.87348587]
[1772654944341,32.77640224,92.883,92.821,35.38735193]
[1772654945043,32.77640224,92.883,92.829,9.69]
[1772654945244,32.77640224,92.883,92.821,35.38735193]
[1772654946339,32.77640224,92.883,92.846,9.689]
[1772654947348,32.77640224,92.883,92.821,35.38735193]
[1772654948943,32.77640224,92.883,92.841,9.689]
[1772654950345,32.77640224,92.899,92.821,35.38735193]
[1772654951447,9.684,92.886,92.831,9.69]
[1772654951648,32.77640224,92.885,92.815,1.87399031]
[1772654951943,32.77640224,92.885,92.803,35.38735193]
[1772654952144,32.77640224,92.885,92.805,1.87415683]
[1772654953247,124.0,92.91,92.812,9.692]
[1772654953248,32.77640224,92.864,92.812,9.692]
[1772654953840,42.46340224,92.863,92.812,9.692]
[1772654954450,32.77640224,92.889,92.803,35.38735193]
[1772654955147,32.77640224,92.889,92.843,9.689]
[1772654955750,32.77640224,92.889,92.819,35.38735193]
[1772654956346,42.45840224,92.907,92.841,35.38735193]
[1772654956651,32.77640224,92.907,92.841,35.38735193]
[1772654956946,32.77640224,92.907,92.863,9.687]
[1772654957568,32.77640224,92.907,92.841,35.38735193]
[1772654958242,42.45840224,92.907,92.863,9.687]
[1772654958550,32.77640224,92.907,92.841,35.38735193]
[1772654959347,34.47169697,92.905,92.841,35.38735193]
[1772654959745,9.683,92.903,92.841,35.38735193]
[1772654960048,44.15469697,92.903,92.841,35.38735193]
[1772654960249,9.683,92.896,92.841,35.38735193]
[1772654960649,34.47169697,92.895,92.824,32.3323277]
[1772654961351,34.47169697,92.895,92.852,9.688]
[1772654961846,34.47169697,92.895,92.831,32.3323277]
[1772654962051,34.47169697,92.895,92.843,9.689]
[1772654962451,44.15569697,92.895,92.843,9.689]
[1772654964046,9.684,92.888,92.835,9.69]
[1772654964353,34.47169697,92.895,92.831,32.3323277]
[1772654965151,34.47169697,92.916,92.831,32.3323277]
[1772654966150,34.47169697,92.916,92.853,33.75937382]
[1772654967557,9.681,92.915,92.865,9.687]
[1772654968159,34.80327482,92.914,92.853,33.75937382]
[1772654968657,9.682,92.909,92.854,9.688]
[1772654969252,9.682,92.909,92.854,43.44737382]
[1772654969458,9.682,92.909,92.84,8.34324613]
[1772654969459,9.682,92.909,92.855,33.75937382]
[1772654969851,34.80327482,92.914,92.855,33.75937382]
[1772654970259,34.80327482,92.914,92.871,9.686]
[1772654970460,34.80327482,92.914,92.855,33.75937382]
[1772654971056,34.80327482,92.914,92.869,9.686]
[1772654971360,34.80327482,92.939,92.855,33.75937382]
[1772654971560,34.80327482,92.937,92.855,33.75937382]
[1772654971763,34.80327482,92.935,92.855,33.75937382]
[1772654972058,34.80327482,92.933,92.855,33.75937382]
[1772654972264,9.682,92.912,92.87,9.686]
[1772654973065,9.683,92.905,92.862,9.687]
[1772654974556,34.80327482,92.897,92.838,33.75937382]
[1772654974765,34.80327482,92.895,92.805,33.75937382]
[1772654974965,34.80327482,92.893,92.805,33.75937382]
[1772654975156,34.80327482,92.891,92.805,33.75937382]
[1772654975357,9.685,92.877,92.818,9.691]
[1772654975756,9.685,92.877,92.805,33.75937382]
[1772654975961,9.685,92.877,92.811,33.75937382]
[1772654977266,34.80327482,92.877,92.822,9.691]
[1772654977467,34.80327482,92.877,92.811,33.75937382]
[1772654979265,9.686,92.875,92.826,9.691]
[1772654979769,44.48927482,92.875,92.826,9.691]
[1772654980172,34.80327482,92.872,92.811,33.75937382]
[1772654980666,34.80327482,92.899,92.811,33.75937382]
[1772654980869,34.80327482,92.897,92.811,33.75937382]
[1772654981068,34.80327482,92.877,92.811,33.75937382]
[1772654981771,34.80327482,92.867,92.819,9.691]
[1772654981962,34.80327482,92.867,92.811,33.75937382]
[1772654982165,44.49027482,92.866,92.814,9.692]
[1772654982372,34.80327482,92.865,92.814,9.692]
[1772654983164,34.80327482,92.858,92.78,33.75937382]
[1772654984473,34.80327482,92.852,92.797,9.694]
[1772654984673,34.80327482,92.852,92.796,33.75937382]
[1772654985375,34.80327482,92.852,92.797,9.694]
[1772654986477,34.80327482,92.85,92.797,9.694]
[1772654987475,9.689,92.847,92.797,9.694]
[1772654988376,34.80327482,92.846,92.797,9.694]
[1772654988584,9.689,92.844,92.797,9.694]
[1772654989282,34.80327482,92.846,92.797,9.694]
[1772654989483,34.80327482,92.846,92.796,33.75937382]
[1772654989674,33.6829401,92.862,92.796,33.75937382]
[1772654989875,33.6829401,92.859,92.792,34.1821778]
[1772654990382,33.6829401,92.859,92.824,9.691]
[1772654991187,33.6829401,92.859,92.815,9.692]
[1772654991573,33.6829401,92.859,92.792,34.1821778]
[1772654991574,33.6829401,92.859,92.823,9.691]
[1772654993488,33.6829401,92.88,92.822,34.1821778]
[1772654994586,33.6829401,92.88,92.833,9.69]
[1772654995090,33.6829401,92.876,92.824,9.691]
[1772654995391,33.6829401,92.876,92.805,34.1821778]
[1772654995692,33.6829401,92.862,92.814,9.692]
[1772654996295,33.6829401,92.862,92.821,9.691]
[1772654996489,33.6829401,92.862,92.805,34.1821778]
[1772654998590,33.6829401,92.862,92.821,9.691]
[1772654998986,33.6829401,92.899,92.811,34.1821778]
[1772654999186,33.6829401,92.899,92.831,34.1821778]
[1772655000292,33.6829401,92.899,92.86,9.687]
[1772655000588,33.6829401,92.899,92.804,34.1821778]
[1772655000893,33.6829401,92.911,92.831,34.1821778]
[1772655001393,33.6829401,92.908,92.854,9.688]
[1772655002494,43.3659401,92.905,92.854,9.688]
[1772655002693,33.6829401,92.904,92.854,9.688]
[1772655002895,33.6829401,92.904,92.845,34.1821778]
[1772655003595,33.6829401,92.903,92.854,9.688]
[1772655004395,33.6829401,92.903,92.861,9.687]
[1772655004798,33.6829401,92.903,92.853,9.688]
[1772655005796,33.6829401,92.903,92.86,9.687]
[1772655006392,7.15449047,92.93,92.83,7.15449047]
[1772655006393,33.6829401,92.929,92.851,34.1821778]
[1772655006597,9.88306386,92.975,92.83,7.15449047]
[1772655006598,3.33755688,92.88,92.835,34.1821778]
[1772655006793,33.6829401,92.89,92.841,34.1821778]
[1772655006994,3.33755688,92.92,92.86,37.51973468]
[1772655007496,3.33755688,92.92,92.876,9.685]
[1772655007887,9.68,92.928,92.876,9.685]
[1772655008694,8.33967148,92.92,92.86,34.1821778]
[1772655008894,33.6829401,92.919,92.821,34.1821778]
[1772655009095,33.6829401,92.919,92.867,9.686]
[1772655009289,33.6829401,92.919,92.84,8.33967148]
[1772655009290,33.6829401,92.919,92.868,34.1821778]
[1772655009698,33.6829401,92.935,92.88,9.685]
[1772655009896,33.6829401,92.935,92.868,34.1821778]
[1772655011191,33.6829401,92.935,92.852,34.1821778]
[1772655011698,43.3649401,92.907,92.852,43.8701778]
[1772655011898,33.6829401,92.906,92.852,34.1821778]
[1772655012694,33.6829401,92.921,92.852,34.1821778]
[1772655012891,33.6829401,92.921,92.873,34.1821778]
[1772655013096,33.6829401,92.938,92.873,34.1821778]
[1772655013498,33.6829401,92.933,92.874,9.686]
[1772655013902,33.6829401,92.933,92.873,34.1821778]
[1772655014296,9.681,92.922,92.873,34.1821778]
[1772655015901,9.681,92.922,92.875,9.686]
[1772655016901,33.6829401,92.933,92.882,9.685]
[1772655017196,33.6829401,92.933,92.851,34.1821778]
[1772655017401,33.6829401,92.933,92.798,19.388]
[1772655017402,9.685,92.884,92.834,9.69]
[1772655018100,33.6829401,92.89,92.839,34.1821778]
[1772655019101,8.33967148,92.9,92.791,32.5925732]
[1772655019102,32.45526377,92.881,92.791,32.5925732]
[1772655019302,8.33967148,92.88,92.791,32.5925732]
[1772655019603,32.45526377,92.879,92.791,32.5925732]
[1772655019803,32.45526377,92.879,92.81,32.5925732]
[1772655020302,32.45526377,92.879,92.828,9.69]
[1772655020805,32.45526377,92.879,92.826,32.5925732]
[1772655020997,32.45526377,92.879,92.79,8.33967148]
[1772655020998,32.45526377,92.879,92.791,32.5925732]
[1772655021703,32.45526377,92.879,92.823,9.691]
[1772655022505,32.45526377,92.899,92.823,32.5925732]
[1772655022807,32.45526377,92.899,92.831,32.5925732]
[1772655023002,32.45526377,92.919,92.848,32.5925732]
[1772655023304,32.45526377,92.919,92.851,32.5925732]
[1772655024496,42.13626377,92.919,92.851,32.5925732]
[1772655025107,42.13626377,92.919,92.87,9.686]
[1772655025298,32.45526377,92.919,92.87,9.686]
[1772655026305,32.45526377,92.919,92.877,9.685]
[1772655028211,9.68,92.927,92.877,42.55567308]
[1772655028412,9.68,92.927,92.882,9.685]
[1772655029208,33.48886417,92.912,92.857,32.87067308]
[1772655029406,33.48886417,92.912,92.822,19.383]
[1772655029407,33.48886417,92.912,92.827,32.87067308]
[1772655029611,33.48886417,92.912,92.829,32.87067308]
[1772655030410,9.682,92.91,92.849,32.87067308]
[1772655030607,33.48886417,92.909,92.85,53.982]
[1772655030907,33.48886417,92.909,92.851,32.87067308]
[1772655031412,12.98753062,92.982,92.822,19.383]
[1772655031413,33.48886417,92.927,92.861,32.87067308]
[1772655031611,33.48886417,92.927,92.863,32.87067308]
[1772655032109,9.68,92.926,92.882,9.685]
[1772655032311,33.48886417,92.927,92.882,9.685]
[1772655033413,43.16886417,92.927,92.882,9.685]
[1772655033711,33.48886417,92.944,92.891,9.684]
[1772655034511,9.679,92.937,92.891,9.684]
[1772655035017,33.48886417,92.944,92.88,8.33967148]
[1772655035208,9.677,92.954,92.881,32.87067308]
[1772655035514,33.48886417,92.953,92.882,32.87067308]
[1772655037908,33.48886417,92.953,92.891,9.684]
[1772655038709,33.48886417,92.947,92.884,32.87067308]
[1772655040013,9.68,92.928,92.885,9.685]
[1772655040215,33.48886417,92.947,92.884,32.87067308]
[1772655041415,9.678,92.945,92.898,9.683]
[1772655042617,9.679,92.938,92.891,32.87067308]
[1772655043817,33.48886417,92.944,92.901,9.683]
[1772655044415,33.48886417,92.944,92.893,9.684]
[1772655046517,9.679,92.937,92.893,9.684]
[1772655047116,9.679,92.937,92.9,3.33408057]
[1772655048017,33.48886417,92.944,92.901,9.683]
[1772655048413,41.95568251,92.943,92.9,3.33408057]
[1772655048610,32.27668251,92.943,92.893,32.87067308]
[1772655049007,32.27668251,92.943,92.9,3.33408057]
[1772655050219,32.27668251,92.943,92.91,3.33408057]
[1772655050416,32.27668251,92.959,92.894,53.982]
[1772655050616,3.33408057,93.01,92.95,3.33408057]
[1772655050823,3.33408057,92.99,92.93,3.33408057]
[1772655051018,10.67537111,93.011,92.885,32.74633986]
[1772655051222,3.33408057,92.95,92.89,3.33408057]
[1772655051423,3.33408057,92.93,92.87,3.33408057]
[1772655051618,9.68,92.925,92.877,9.685]
[1772655051916,7.86526822,92.965,92.87,3.33408057]
[1772655052124,9.682,92.912,92.869,32.74633986]
[1772655052817,32.27668251,92.918,92.869,42.43233986]
[1772655053323,32.27668251,92.918,92.87,3.33408057]
[1772655053525,32.27668251,92.918,92.872,9.686]
[1772655053526,9.681,92.917,92.872,9.686]
[1772655055926,9.681,92.917,92.869,32.74633986]
[1772655057526,9.681,92.917,92.871,9.686]
[1772655058924,9.682,92.911,92.869,32.74633986]
[1772655059422,9.682,92.911,92.811,19.91824977]
[1772655059423,32.27668251,92.899,92.844,9.689]
[1772655059629,32.27668251,92.899,92.844,32.74633986]
[1772655059824,32.27668251,92.899,92.85,3.33568292]
[1772655060218,3.33568292,92.91,92.86,3.33568292]
[1772655060429,32.27668251,92.926,92.871,32.74633986]
[1772655060430,3.33568292,92.92,92.871,32.74633986]
[1772655060826,32.27668251,92.926,92.89,3.33568292]
[1772655061426,9.679,92.937,92.89,13.01968292]
[1772655065336,41.95568251,92.937,92.89,13.01968292]
[1772655066040,32.27668251,92.936,92.88,36.08202278]
[1772655066740,32.27668251,92.936,92.89,3.33568292]
[1772655068642,9.679,92.935,92.89,3.33568292]
[1772655068934,32.27668251,92.936,92.89,3.33568292]
[1772655069335,9.679,92.935,92.891,9.684]
[1772655069540,9.679,92.935,92.89,3.33568292]
[1772655069741,41.95568251,92.935,92.89,3.33568292]
[1772655070142,9.68,92.931,92.89,3.33568292]
[1772655070841,9.68,92.928,92.89,3.33568292]
[1772655072541,32.27668251,92.944,92.9,3.33568292]
[1772655072839,35.61236543,92.94,92.89,36.08202278]
[1772655073034,9.679,92.937,92.89,36.08202278]
[1772655073746,32.27668251,92.94,92.89,36.08202278]
[1772655073747,9.68,92.93,92.89,45.76602278]
[1772655074441,9.68,92.93,92.89,32.74633986]
[1772655074648,9.681,92.921,92.88,3.33568292]
[1772655075549,32.27668251,92.929,92.89,3.33568292]
[1772655076448,9.68,92.931,92.894,9.684]
[1772655076637,32.27668251,92.94,92.894,9.684]
[1772655076945,32.27668251,92.94,92.89,3.33568292]
[1772655076946,35.61236543,92.94,92.89,3.33568292]
[1772655077141,32.27668251,92.94,92.891,32.74633986]
[1772655078144,32.27668251,92.94,92.9,3.33568292]
[1772655078544,9.679,92.939,92.9,13.01868292]
[1772655080042,9.678,92.946,92.906,9.682]
[1772655080242,32.07303607,92.954,92.91,3.33568292]
[1772655081048,32.07303607,92.989,92.94,3.33568292]
[1772655081249,32.07303607,92.989,92.873,150.674]
[1772655081250,32.07303607,93.011,92.96,3.33568292]
[1772655081542,9.672,93.003,92.96,3.33568292]
[1772655081740,32.07303607,93.003,92.96,3.33568292]
[1772655082142,35.40871899,93.0,92.951,31.23838453]
[1772655082647,35.40871899,93.0,92.95,3.33568292]
[1772655082648,32.07303607,92.999,92.95,34.57406745]
[1772655082849,32.07303607,92.999,92.95,31.23838453]
[1772655083049,9.671,93.017,92.97,3.33568292]
[1772655083947,32.07303607,93.033,92.981,31.23838453]
[1772655084250,19.328,93.086,92.98,3.33568292]
[1772655084251,32.07303607,93.029,92.98,3.33568292]
[1772655084447,32.07303607,93.029,92.97,34.57406745]
[1772655084648,35.40871899,93.02,92.97,34.57406745]
[1772655084846,35.40871899,93.02,92.914,19.9191211]
[1772655084847,32.07303607,93.083,93.0,3.33568292]
[1772655085145,32.07303607,93.049,93.0,3.33568292]
[1772655085444,32.07303607,93.049,92.924,409.62919668]
[1772655085445,32.07303607,93.039,92.974,31.23838453]
[1772655085649,32.07303607,93.029,92.98,3.33568292]
[1772655085850,32.07303607,93.049,92.99,34.57406745]
[1772655086254,33.42775741,93.03,92.974,31.37689905]
[1772655086550,3.33568292,93.02,92.974,31.37689905]
[1772655086949,33.42775741,93.03,92.974,31.37689905]
[1772655088454,9.67,93.029,92.974,31.37689905]
[1772655088655,33.42775741,93.03,92.974,31.37689905]
[1772655089056,33.42775741,93.03,92.98,3.33568292]
[1772655089454,3.33568292,92.99,92.941,31.37689905]
[1772655089856,3.33568292,92.98,92.941,31.37689905]
[1772655090460,30.09207449,92.999,92.941,31.37689905]
[1772655090759,9.675,92.978,92.916,9.681]
[1772655091052,9.675,92.978,92.917,31.37689905]
[1772655091256,30.09207449,92.999,92.917,31.37689905]
[1772655091453,30.09207449,93.019,92.93,31.37689905]
[1772655092557,9.674,92.991,92.935,31.37689905]
[1772655092960,9.674,92.991,92.938,31.37689905]
[1772655093854,9.674,92.991,92.942,31.37689905]
[1772655094748,30.09207449,93.002,92.944,31.37689905]
[1772655094749,9.673,93.0,92.944,31.37689905]
[1772655094949,9.673,93.0,92.946,31.37689905]
[1772655095857,30.09207449,93.002,92.945,53.982]
[1772655095858,9.672,93.009,92.951,31.37689905]
[1772655096057,30.09207449,93.008,92.951,31.37689905]
[1772655097159,9.672,93.001,92.951,31.37689905]
[1772655098053,9.673,92.993,92.951,31.37689905]
[1772655098456,30.09207449,93.008,92.936,31.37689905]
[1772655098752,30.09207449,92.959,92.901,31.37689905]
[1772655098958,30.09207449,92.939,92.885,31.37689905]
[1772655099159,8.32894421,92.96,92.885,31.37689905]
[1772655099359,30.09207449,92.959,92.885,31.37689905]
[1772655100461,9.678,92.946,92.887,31.37689905]
[1772655100858,30.09207449,92.945,92.887,31.37689905]
[1772655101354,30.09207449,92.943,92.887,31.37689905]
[1772655101762,30.09207449,92.977,92.905,31.37689905]
[1772655102462,9.677,92.962,92.906,9.682]
[1772655104563,9.677,92.962,92.907,53.982]
[1772655105367,30.09207449,92.97,92.909,9.682]
[1772655106165,30.09207449,92.97,92.91,31.37689905]
[1772655106366,30.09207449,92.949,92.881,53.982]
[1772655106567,30.09207449,92.949,92.88,31.37689905]
[1772655108467,9.678,92.946,92.897,9.683]
[1772655111467,30.09207449,92.949,92.897,40.17323487]
[1772655111667,30.09207449,92.949,92.902,9.683]
[1772655112967,9.677,92.955,92.898,30.49023487]
[1772655113472,9.678,92.948,92.898,30.49023487]
[1772655113671,29.63528335,92.947,92.898,30.49023487]
[1772655113973,29.63528335,92.947,92.873,30.49023487]
[1772655114166,29.63528335,92.947,92.875,30.49023487]
[1772655114773,29.63528335,92.947,92.892,9.684]
[1772655115074,29.63528335,92.947,92.893,30.49023487]
[1772655116474,29.63528335,92.947,92.888,9.684]
[1772655117281,9.68,92.929,92.881,30.49023487]
[1772655117475,29.63528335,92.929,92.881,30.49023487]
[1772655118377,9.681,92.922,92.881,30.49023487]
[1772655120177,29.63528335,92.946,92.886,30.49023487]
[1772655120477,29.63528335,92.946,92.887,53.982]
[1772655120672,9.681,92.923,92.887,53.982]
[1772655120878,9.681,92.923,92.86,8.33741075]
[1772655120879,29.63528335,92.949,92.875,30.49023487]
[1772655121175,29.63528335,92.989,92.923,30.49023487]
[1772655122269,29.63528335,92.989,92.9,8.33741075]
[1772655122270,39.30928335,92.989,92.942,30.49023487]
[1772655122470,29.63528335,93.006,92.942,30.49023487]
[1772655122878,39.30728335,93.006,92.942,30.49023487]
[1772655123471,8.33741075,93.03,92.942,30.49023487]
[1772655123677,9.671,93.016,92.967,30.49023487]
[1772655123879,29.63528335,93.023,92.967,30.49023487]
[1772655124277,9.67,93.02,92.97,9.676]
[1772655125177,29.63528335,93.023,92.972,40.16523487]
[1772655126279,29.63528335,93.023,92.941,30.49023487]
[1772655126483,29.63528335,93.009,92.941,30.49023487]
[1772655126783,29.63528335,92.989,92.899,30.49023487]
[1772655126977,29.63528335,92.969,92.899,30.49023487]
[1772655128381,9.676,92.968,92.914,30.49023487]
[1772655129582,29.63528335,92.959,92.881,30.49023487]
[1772655130380,9.678,92.947,92.881,30.49023487]
[1772655130779,29.63528335,92.959,92.881,30.49023487]
[1772655131377,9.677,92.956,92.881,30.49023487]
[1772655132485,9.677,92.956,92.894,30.49023487]
[1772655133283,29.63528335,92.959,92.899,30.49023487]
[1772655134283,39.31228335,92.959,92.906,9.682]
[1772655135280,9.676,92.969,92.915,30.49023487]
[1772655136384,19.345,93.006,92.909,9.682]
[1772655136385,29.63528335,92.96,92.909,9.682]
[1772655137384,9.677,92.959,92.909,9.682]
[1772655137885,29.63528335,92.96,92.909,40.17223487]
[1772655138887,29.63528335,92.96,92.912,9.682]
[1772655139083,29.63528335,92.96,92.912,38.89443001]
[1772655140284,9.677,92.958,92.912,38.89443001]
[1772655140783,29.63528335,92.96,92.912,29.21243001]
[1772655142589,9.678,92.951,92.912,29.21243001]
[1772655142992,29.63528335,92.96,92.912,38.89443001]
[1772655143381,39.31228335,92.96,92.912,29.21243001]
[1772655144290,9.678,92.952,92.912,29.21243001]
[1772655144989,39.31228335,92.96,92.912,29.21243001]
[1772655145988,29.63528335,92.96,92.914,28.55521912]
[1772655147092,9.676,92.968,92.923,28.55521912]
[1772655147390,38.79859543,92.976,92.923,28.55521912]
[1772655148393,38.79859543,92.976,92.926,38.23521912]
[1772655148594,38.79859543,92.976,92.926,28.55521912]
[1772655148789,29.12359543,92.993,92.926,28.55521912]
[1772655149390,29.12359543,92.993,92.908,53.982]
[1772655149596,29.12359543,92.97,92.909,28.55521912]
[1772655151396,29.12359543,92.97,92.93,9.68]
[1772655152896,29.12359543,92.97,92.91,53.982]
[1772655152897,9.674,92.984,92.94,28.55521912]
[1772655153393,9.673,92.993,92.949,9.678]
[1772655154802,29.12359543,93.004,92.956,9.677]
[1772655154803,9.673,93.001,92.956,9.677]
[1772655155102,29.12359543,93.004,92.94,28.55521912]
[1772655155601,29.12359543,93.004,92.955,9.677]
[1772655157404,29.12359543,93.004,92.955,38.23221912]
[1772655158406,9.672,93.003,92.955,38.23221912]
[1772655159308,9.672,93.003,92.958,28.55521912]
[1772655159508,9.671,93.011,92.961,28.55521912]
[1772655160204,29.12359543,93.018,92.972,9.675]
[1772655160407,29.12359543,93.018,92.961,28.55521912]
[1772655161505,19.336,93.046,92.961,28.55521912]
[1772655161506,29.12359543,93.009,92.961,28.55521912]
[1772655161913,29.12359543,93.009,92.963,28.55521912]
[1772655162805,29.12359543,93.025,92.98,3.32982927]
[1772655163012,29.12359543,93.025,92.981,28.55521912]
[1772655163210,3.32982927,93.04,92.981,28.55521912]
[1772655163211,29.12359543,93.039,92.981,28.55521912]
[1772655163411,29.12359543,93.039,92.994,9.673]
[1772655163604,29.12359543,93.039,92.99,31.88504839]
[1772655163809,29.12359543,93.039,93.0,3.32982927]
[1772655164110,9.668,93.042,93.0,3.32982927]
[1772655164712,32.4534247,93.05,93.001,9.672]
[1772655165517,29.12359543,93.05,93.009,9.672]
[1772655165704,32.4534247,93.06,93.01,28.55521912]
[1772655166414,29.12359543,93.059,93.011,9.671]
[1772655167215,29.12359543,93.076,93.014,28.55521912]
[1772655168512,29.12359543,93.076,92.983,53.982]
[1772655168513,28.35756927,93.07,92.984,30.62776296]
[1772655169012,28.35756927,93.06,93.001,30.62776296]
[1772655170307,28.35756927,93.057,93.005,9.672]
[1772655170511,28.35756927,93.057,93.006,53.982]
[1772655171112,28.35756927,93.057,93.02,9.67]
[1772655172220,28.35756927,93.076,93.02,9.67]
[1772655172419,38.02256927,93.071,93.02,9.67]